Cogmind - Beta 17 @@@ ROGUE MODE // 2026.07.16 @ 20:20:46 Player: Zish Result: Destroyed by H-61 Shepherd with Heavy Assault Cannon Performance ------------- Evolutions (2) 1000 Regions Visited (5) 1000 Robots Destroyed (102) 510 Value Destroyed (2334) 2334 Prototype IDs (24) 480 Alien Tech Used (0) 0 Bonus (604) 604 TOTAL SCORE: 5928 Bonus ------- High Alert Combat Kills 66 Follower Combat Kills 249 Aligned with FarCom 300 Friendly Fire -11 Cogmind --------- Core Integrity 0/550 Matter 268/300 Energy 100/100 System Corruption 0% Temperature Cool (0) Movement Core (1400) Ox27 Location -8/Materials Parts ------- > --- POWER (1) -------- (None) > --- PROPULSION (3) --- (None) > --- UTILITY (5) ------ Huge Storage Unit Improved Targeting Computer Advanced Targeting Computer Advanced Targeting Computer > --- WEAPON (2) ------- Longsword +1 > --- INVENTORY (25) --- Light Deuterium Engine Improved Deuterium Engine Improved Deuterium Engine Cesium-ion Thruster Cesium-ion Thruster Surge Thruster Surge Thruster Surge Thruster Improved VTOL Module Improved VTOL Module Improved Heat Sink Compact Matter Pod (96) Heavy Armor Plating Hacking Suite Hacking Suite Powered Hammer Peak State ------------ > --- POWER ------------ Improved Deuterium Engine > --- PROPULSION ------- Light Treads Improved Treads Improved VTOL Module > --- UTILITY ---------- Huge Storage Unit Improved Targeting Computer Advanced Targeting Computer Advanced Targeting Computer Improved Light Armor Plating > --- WEAPON ----------- Advanced Assault Cannon Advanced Assault Cannon > --- INVENTORY -------- Light Deuterium Engine Light Nuclear Core Improved Deuterium Engine Improved Deuterium Engine Cesium-ion Thruster Cesium-ion Thruster Surge Thruster Surge Thruster Surge Thruster Improved VTOL Module Improved Heat Sink Compact Matter Pod Propulsion Shielding Heavy Armor Plating Hacking Suite Hacking Suite Advanced Assault Cannon Advanced Assault Cannon Powered Hammer Longsword +1 [Rating: 38] Favorites ----------- Power Improved Deuterium Engine Engine Improved Deuterium Engine Power Core Light Nuclear Core Propulsion Light Treads Treads Light Treads Flight Unit Improved VTOL Module Utility Advanced Targeting Computer Storage Large Storage Unit Processor Advanced Targeting Computer Protection Hardened Medium Armor Plating Weapon Advanced Assault Cannon Energy Gun Particle Gun Ballistic Gun Assault Rifle Ballistic Cannon Advanced Assault Cannon Slashing Weapon Longsword +1 Build | -11 -10 -10 -10 -9 -8 ------- Run | Yrd Mat Min Exi Min Mat Slots Evolved 4 | . . . . . 4 Power . | . . . . . . Propulsion 1 | . . . . . 1 Utility 3 | . . . . . 3 Weapon . | . . . . . . Parts Attached 49 | 6 9 1 1 . 32 Power 7 | 1 1 . . . 5 Engine 5 | 1 1 . . . 3 Core 2 | . . . . . 2 Reactor . | . . . . . . Propulsion 12 | 2 . 1 1 . 8 Treads 11 | 2 . 1 1 . 7 Leg . | . . . . . . Wheel . | . . . . . . Hover . | . . . . . . Flight 1 | . . . . . 1 Utility 17 | 1 4 . . . 12 Device . | . . . . . . Storage 6 | 1 2 . . . 3 Processor 4 | . 1 . . . 3 Hackware . | . . . . . . Protection 7 | . 1 . . . 6 Artifact . | . . . . . . Weapon 13 | 2 4 . . . 7 Energy Gun 2 | . 2 . . . . Energy Cannon . | . . . . . . Ballistic Gun 6 | 2 2 . . . 2 Ballistic Cannon 4 | . . . . . 4 Launcher . | . . . . . . Special Weapon . | . . . . . . Impact Weapon . | . . . . . . Slashing Weapon 1 | . . . . . 1 Piercing Weapon . | . . . . . . Special Melee Weapon . | . . . . . . Unidentified Prototypes 1 | . . . . . 1 Parts Lost 18 | . 2 1 . . 15 Power 3 | . . . . . 3 Propulsion 7 | . . 1 . . 6 Utility 3 | . 1 . . . 2 Weapon 5 | . 1 . . . 4 Highest Loss Streak 4 | . 1 1 . . 4 To Critical Strikes . | . . . . . . Average Backups 14 | . 7 14 15 15 17 Power 2 | . 2 2 2 2 3 Propulsion 4 | . 2 2 2 2 5 Utility 3 | . 1 3 3 3 4 Weapon 3 | . 2 6 7 8 3 Tool/Special . | . . . . . . Unused Backups 25 | . 2 2 . . 21 Power 6 | . . 1 . . 5 Propulsion 6 | . . . . . 6 Utility 5 | . . 1 . . 4 Weapon 8 | . 2 . . . 6 Tool/Special . | . . . . . . Average Slot Usage (%) 93 | . 97 99 100 100 90 Engine 10 | . 14 14 14 14 8 Treads 22 | . 28 27 28 28 19 Storage 12 | . 14 14 14 14 11 Processor 17 | . 8 14 14 14 22 Protection 6 | . 3 . . . 9 Energy Gun 2 | . 9 . . . . Ballistic Gun 10 | . 18 28 28 28 3 Ballistic Cannon 8 | . . . . . 14 Peak Build Rating 38 | 6 12 11 12 12 38 Average Rating 21 | 4 9 10 11 12 30 On Entrance 8 | . 6 10 11 12 12 Avg Prop Armor Cover (%) 7 | . . . . . 7 Naked Turns . | . . . . . . Heaviest Build 108 | 13 33 31 31 31 108 Greatest Support 69 | 40 40 40 40 40 69 Greatest Overweight (x) 34 | . . 1 . . 34 Average Overweight (x) . | . . . . . 1 Largest Inventory Capacity 25 | 8 15 15 15 15 25 Average Capacity 17 | 6 11 15 15 15 21 Most Carried 22 | 1 15 15 15 15 22 Average Carried 14 | . 8 14 14 15 18 Final Capacity 25 | 8 15 15 15 15 25 Final Carried 17 | 1 15 15 15 15 17 Class Distribution -------------------- 100% | Mutant Dominant Class ---------------- Mutant | -10/Materials Mutant | -10/Mines Mutant | -10/Exiles Mutant | -9/Mines Mutant | -8/Materials Resources | -11 -10 -10 -10 -9 -8 ----------- Run | Yrd Mat Min Exi Min Mat Matter Collected 2783 | 219 444 92 . 53 1975 Remotely . | . . . . . . Salvage Created 2819 | . 965 179 . . 1675 Parts 192 | . 69 16 . . 107 Haulers Intercepted 8 | . 2 . . . 6 Recyclers Shooed 5 | . 2 . . . 3 Parts Field Recycled . | . . . . . . Retrieved Matter . | . . . . . . Parts Self-Destructed . | . . . . . . Prevented . | . . . . . . Parts Restored . | . . . . . . Kills | -11 -10 -10 -10 -9 -8 ------- Run | Yrd Mat Min Exi Min Mat Combat Hostiles Destroyed 61 | . 18 7 . . 36 Melee 1 | . . . . . 1 Guns 33 | . 18 7 . . 8 Cannons 27 | . . . . . 27 Classes Destroyed 14 | . 9 . . . 5 Worker 11 | . 1 . . . 10 Builder 3 | . 1 . . . 2 Tunneler 4 | . 3 . . . 1 Hauler 8 | . 2 . . . 6 Recycler 6 | . 2 . . . 4 Operator 3 | . 1 . . . 2 Watcher 6 | . 2 . . . 4 Swarmer 19 | . 8 5 . . 6 Cutter 3 | . . . . . 3 Grunt 24 | . 10 2 . . 12 Sentry 7 | . . . . . 7 Specialist 4 | . . . . . 4 Hunter 3 | . . . . . 3 Heavy 1 | . . . . . 1 Best Kill Streak 6 | . 5 5 . . 6 Combat Bots Only 5 | . 4 5 . . 5 Max Kills in Single Turn 2 | . 1 1 . . 2 Gunslinging . | . . . . . . Exploded . | . . . . . . Melee 1 | . . . . . 1 Uniques/NPCs Destroyed . | . . . . . . Combat | -11 -10 -10 -10 -9 -8 -------- Run | Yrd Mat Min Exi Min Mat Hostile Shots Fired 376 | . 88 15 . 5 268 Missed 112 | . 28 5 . 1 78 Hits 264 | . 60 10 . 4 190 Melee 10 | . . . . . 10 Projectile 254 | . 60 10 . 4 180 AOE 4 | . . . . . 4 Critical Strikes 13 | . . . . . 13 Damage Taken 4333 | . 726 115 . 69 3423 Core 757 | . 170 . . 11 576 Absorbed by Shields . | . . . . . . Redirected to Shielding 52 | . . . . . 52 Core Remaining (%) 63 | 100 . . . 27 . Volleys Fired 260 | . 81 11 . 4 164 Largest 2 | . 2 2 . 2 2 Hottest 130 | . 130 40 . 40 80 Shots Fired 518 | . 162 22 . 8 326 Gun 292 | . 162 22 . 8 100 Cannon 226 | . . . . . 226 Launcher . | . . . . . . Special . | . . . . . . Kinetic 499 | . 143 22 . 8 326 Thermal 19 | . 19 . . . . Explosive . | . . . . . . Electromagnetic . | . . . . . . Robot Hit Streak 13 | . 13 11 . 3 13 Robot Miss Streak 3 | . 3 1 . 3 3 Penetration Max . | . . . . . . Secondary Targets 3 | . 3 . . . . Max Gunslinging Chain 1 | . 1 . . . . Shots Hit Robots 359 | . 104 17 . 4 234 Core Hits 150 | . 49 10 . 1 90 Critical Kills 1 | . 1 . . . . Critical Parts Destroyed . | . . . . . . Critical Strikes 13 | . 1 . . . 12 Destroy 1 | . 1 . . . . Blast 12 | . . . . . 12 Melee Attacks 2 | . . . . . 2 Impact . | . . . . . . Slashing 2 | . . . . . 2 Piercing . | . . . . . . Sneak Attacks . | . . . . . . Combat Hostiles . | . . . . . . Follow-up Attacks . | . . . . . . Damage Inflicted 6606 | . 1155 231 . 58 5162 Guns 2400 | . 1155 231 . 58 956 Cannons 4151 | . . . . . 4151 Explosions . | . . . . . . Melee 47 | . . . . . 47 Ramming 8 | . . . . . 8 Kinetic 6382 | . 986 231 . 58 5107 Thermal 169 | . 169 . . . . Explosive . | . . . . . . Electromagnetic . | . . . . . . Impact . | . . . . . . Slashing 47 | . . . . . 47 Piercing . | . . . . . . Highest Corruption 2 | . 2 2 2 2 . Average Corruption 1 | . 1 2 2 2 . Corruption Purged . | . . . . . . Corruption Blocked . | . . . . . . Effects 16 | . 3 6 5 2 . Message Errors 2 | . . 1 1 . . Matter Fused 5 | . 1 2 2 . . Energy Discharges 1 | . . . 1 . . Data Loss (minor) 4 | . 1 2 . 1 . Alerts 4 | . 1 1 1 1 . Overload Shots . | . . . . . . Overflow Damage 168 | . . . . . 168 Projectiles 168 | . . . . . 168 Explosions . | . . . . . . Melee . | . . . . . . Knockbacks 47 | . . . . . 47 Impact . | . . . . . . Kinetic 47 | . . . . . 47 Secondary . | . . . . . . Self-Inflicted Damage . | . . . . . . Shots . | . . . . . . Rammed . | . . . . . . Targets Rammed 1 | . . . . . 1 Kicked . | . . . . . . Crushed 1 | . . . . . 1 Highest Temperature 231 | . 144 3 . 6 231 Average Temperature 38 | . 28 3 . 4 42 Received Heat Transfer 1350 | . 225 51 . 39 1035 Siege Activations . | . . . . . . Martial Activations . | . . . . . . Shielding Activations . | . . . . . . Robots Disrupted . | . . . . . . Combat Hostiles . | . . . . . . Robots Corrupted . | . . . . . . Combat Hostiles . | . . . . . . Parts Fried . | . . . . . . Impact Corruptions . | . . . . . . Robots Melted . | . . . . . . Combat Hostiles . | . . . . . . Parts Melted 1 | . 1 . . . . Heat Transferred 407 | . 407 . . . . Parts Sabotaged . | . . . . . . Parts Stolen . | . . . . . . Parts Stripped . | . . . . . . Power Chain Reactions . | . . . . . . Alert | -11 -10 -10 -10 -9 -8 ------- Run | Yrd Mat Min Exi Min Mat Maximum Alert Level 2 | . . . . . 2 Low Security (%) 59 | 100 100 100 . 100 34 Level 1 36 | . . . . . 59 Level 2 3 | . . . . . 6 Level 3 . | . . . . . . Level 4 . | . . . . . . Level 5 . | . . . . . . High Security . | . . . . . . Max Security . | . . . . . . Peak Influence 507 | . 196 100 . 55 507 Initial 5 | . . 5 . . . Average 165 | . 61 27 . 24 237 Influence Increases 2332 | . 525 166 . 55 1586 Destroy 0b10 Robot/C 1400 | . 360 140 . 40 860 Destroy 0b10 Robot/NC 210 | . 60 . . . 150 Destroy Leader 350 | . 58 20 . 10 262 Allied During Kill 33 | . . 6 . 5 22 Successful Hack 70 | . . . . . 70 Disable Machine 45 | . . . . . 45 Destroy Structure 59 | . 2 . . . 57 Lose Combat Pursuer 165 | . 45 . . . 120 Influence Decreases 1825 | . 510 173 8 55 1079 Entered New Map 18 | . . 10 8 . . Time Decay 1427 | . 490 163 . 55 719 Lost Part 170 | . 20 . . . 150 Lost Ally 60 | . . . . . 60 Purge Threat 150 | . . . . . 150 Squads Dispatched 14 | . 3 1 . . 10 Investigation 6 | . 2 1 . . 3 Extermination . | . . . . . . Reinforcement 8 | . 1 . . . 7 Assault . | . . . . . . Garrison . | . . . . . . Intercept . | . . . . . . Searches Triggered . | . . . . . . Construction Impeded . | . . . . . . Haulers Reinforced . | . . . . . . Active Scanning Responses . | . . . . . . Cargo Convoy Interrupts . | . . . . . . Stealth | -11 -10 -10 -10 -9 -8 --------- Run | Yrd Mat Min Exi Min Mat Distress Signals 4 | . 1 . . . 3 Communications Jammed . | . . . . . . Distress Signals . | . . . . . . Times Spotted 103 | . 30 8 . 3 62 Peak Tracking Total 5 | . 3 4 . 3 5 Tactical Retreats 9 | . 1 . . . 8 Traps | -11 -10 -10 -10 -9 -8 ------- Run | Yrd Mat Min Exi Min Mat Traps Triggered 6 | . 6 . . . . Indirectly . | . . . . . . Trap Hack Attempts . | . . . . . . Triggered . | . . . . . . Disarmed . | . . . . . . Reprogrammed . | . . . . . . Reused . | . . . . . . Traps Extracted . | . . . . . . Installed . | . . . . . . Triggered . | . . . . . . Machines | -11 -10 -10 -10 -9 -8 ---------- Run | Yrd Mat Min Exi Min Mat Machines Disabled 3 | . . . . . 3 Max in Single Turn 1 | . . . . . 1 Machines Repaired . | . . . . . . Machines Dismantled . | . . . . . . Machines Sabotaged . | . . . . . . Overloaded Fab Kills . | . . . . . . Hacking | -11 -10 -10 -10 -9 -8 --------- Run | Yrd Mat Min Exi Min Mat Machines Accessed 13 | . 3 1 2 . 7 Terminals 5 | . 2 . . . 3 Fabricators . | . . . . . . Repair Stations . | . . . . . . Recycling Units 2 | . 1 . . . 1 Scanalyzers 2 | . . . . . 2 Garrison Access 1 | . . . . . 1 Total Hacks 41 | . 10 1 10 . 20 Successful 23 | . 3 1 10 . 9 Failed 18 | . 7 . . . 11 Catastrophic 2 | . . . . . 2 Database Lockouts . | . . . . . . Manual 11 | . 2 . 1 . 8 Terminals 11 | . 5 . . . 6 Fabricators . | . . . . . . Repair Stations . | . . . . . . Recycling Units 8 | . 5 . . . 3 Scanalyzers 9 | . . . . . 9 Garrison Access 2 | . . . . . 2 Terminal Hacks 13 | . . 1 10 . 2 Record 9 | . . . 9 . . Open Door 1 | . . 1 . . . Alert Level 1 | . . . . . 1 Unreport Threat 1 | . . . . . 1 Proto ID Catalog 1 | . . . 1 . . Fabricator Hacks . | . . . . . . Repair Station Hacks . | . . . . . . Recycling Unit Hacks 2 | . 2 . . . . Report Inventory 1 | . 1 . . . . Retrieve Components 1 | . 1 . . . . Scanalyzer 5 | . . . . . 5 Insert Component 3 | . . . . . 3 Analyze 2 | . . . . . 2 Garrison Access Hacks . | . . . . . . Unauthorized Hacks 3 | . 1 . . . 2 Terminals 3 | . 1 . . . 2 Operators 3 | . 1 . . . 2 Fabricators . | . . . . . . Repair Stations . | . . . . . . Recycling Units . | . . . . . . Scanalyzers . | . . . . . . Garrison Access . | . . . . . . Data Cores Recovered . | . . . . . . Used . | . . . . . . Hacking Detections 8 | . 1 . . . 7 Full Trace Events 4 | . 1 . . . 3 Feedback Events . | . . . . . . Feedback Blocked . | . . . . . . Robot Schematics Acquired . | . . . . . . Robots Built . | . . . . . . Authchips . | . . . . . . Time . | . . . . . . Total Robot Build Rating . | . . . . . . Part Schematics Acquired 2 | . . . . . 2 Parts Built . | . . . . . . Authchips . | . . . . . . Time . | . . . . . . Total Part Build Rating . | . . . . . . Part Studies Acquired . | . . . . . . Parts Repaired . | . . . . . . Time . | . . . . . . Parts Recycled . | . . . . . . Recycled Matter . | . . . . . . Retrieved Matter . | . . . . . . Retrieved Components 10 | . 10 . . . . Parts Scanalyzed 2 | . . . . . 2 Part Schematics Acquired 2 | . . . . . 2 Parts Damaged . | . . . . . . Bothacking | -11 -10 -10 -10 -9 -8 ------------ Run | Yrd Mat Min Exi Min Mat Used RIF Installer . | . . . . . . Robots Hacked . | . . . . . . Non-combat . | . . . . . . Combat . | . . . . . . Robot Hacks Applied . | . . . . . . Relay Couplers Released . | . . . . . . Fabnet Peak Effective % . | . . . . . . Robots Rewired . | . . . . . . Allies Hacked . | . . . . . . Hacks Repelled . | . . . . . . Allies | -11 -10 -10 -10 -9 -8 -------- Run | Yrd Mat Min Exi Min Mat Total Allies 4 | . . 3 . 1 . Largest Group 3 | . . 3 3 3 3 Highest-Rated Group 55 | . . 40 40 55 55 Highest-Rated Ally 31 | . . 16 16 31 31 Total Orders . | . . . . . . Ally Attacks 50 | . . . . 17 33 Total Damage 577 | . . . . 172 405 Kills 10 | . . . . 2 8 Allies Corrupted 1 | . . . . 1 . Allies Melted . | . . . . . . Intel | -11 -10 -10 -10 -9 -8 ------- Run | Yrd Mat Min Exi Min Mat Active Infowar (turns) . | . . . . . . Robot Analysis Total . | . . . . . . Derelict Logs Recovered 2 | . . 2 . . . Drone Launches . | . . . . . . Drone Recoveries . | . . . . . . Exploration | -11 -10 -10 -10 -9 -8 ------------- Run | Yrd Mat Min Exi Min Mat Turns Passed 7506 | 74 1922 611 364 123 4412 Spaces Moved 3168 | 43 1036 353 225 67 1444 Core 32 | 3 . . . . 29 Treads 3136 | 40 1036 353 225 67 1415 Legs . | . . . . . . Wheels . | . . . . . . Hover . | . . . . . . Flight . | . . . . . . Fastest Speed 50 | 50 160 160 160 160 160 Average Speed 206 | 152 160 160 160 160 261 Slowest Speed 1750 | 160 160 240 160 160 1750 Overloaded Moves . | . . . . . . Propulsion Burnouts . | . . . . . . Robots Hopped . | . . . . . . Potential Cave-ins . | . . . . . . Cave-ins Triggered . | . . . . . . Exploration Rate (%) 60 | 4 98 83 62 23 94 Regions Visited 5 Branch Regions 3 Pre-discovered Areas 3 | . . 1 1 1 . Known Exits Taken . | . . . . . . Unknown Exits Taken 5 | 1 1 1 1 1 . Scrap Searched 1 | . . 1 . . . Spaces Dug . | . . . . . . Terrain Destroyed 51 | . . . . . 51 Melee . | . . . . . . Projectile 51 | . . . . . 51 AOE . | . . . . . . Terrain Rammed . | . . . . . . Walls Destroyed . | . . . . . . Machines Disabled . | . . . . . . Actions | -11 -10 -10 -10 -9 -8 --------- Run | Yrd Mat Min Exi Min Mat Total 3639 | 49 1149 378 229 75 1759 Wait 91 | . 2 9 2 5 73 Move 3163 | 42 1035 352 224 66 1444 Hop . | . . . . . . Pick Up 42 | 1 17 3 1 . 20 Fast Attach 16 | 6 2 . . . 8 Attach 14 | . 1 1 . . 12 Detach 3 | . . . . . 3 Swap 20 | . 6 . 1 . 13 Drop 27 | . 5 2 1 . 19 Fire 260 | . 81 11 . 4 164 Melee 2 | . . . . . 2 Ram . | . . . . . . Kick . | . . . . . . Crush 1 | . . . . . 1 Escape Stasis . | . . . . . . Rewire . | . . . . . . Trap . | . . . . . . Miscellaneous . | . . . . . . Route ------- -11/Scrapyard -10/Materials (discovered 5 exits: [*Mat x3] / *Min / [*Sub]) -10/Mines (discovered 2 exits: [*Mat] / *Exi) -10/Exiles -9/Mines -8/Materials (discovered 2 exits: [*Fac x2]) History --------- Turn | Location | Event 2 | -11/Scrapyard | Met Revision 17 20 | -11/Scrapyard | Discovered new exit (range 16) 75 | -11/Scrapyard | Entered Materials 213 | -10/Materials | Discovered new exit (range 16) 300 | -10/Materials | Build established: Mutant 445 | -10/Materials | Discovered new exit (range 16) 848 | -10/Materials | Discovered new exit (range 12) 901 | -10/Materials | Core integrity fell below 50% 1746 | -10/Materials | Discovered new exit (range 16) 1755 | -10/Materials | Discovered new exit (range 6) 1997 | -10/Materials | Entered Mines 2006 | -10/Mines | Received a Rocket Launcher from a helpful Derelict 2205 | -10/Mines | Discovered new exit (range 14) 2448 | -10/Mines | Assisted by bots powering up and referring to "LRC-V3" 2513 | -10/Mines | Met a Derelict shopkeep closing up shop 2595 | -10/Mines | Deemed a non-threat by the Exiles lab entrance 2595 | -10/Mines | Discovered new exit (range 5) 2608 | -10/Mines | Entered Exiles 2608 | -10/Exiles | Accompanied by 3 allies 2650 | -10/Exiles | Met 8R-AWN 2674 | -10/Exiles | Met EX-HEX 2728 | -10/Exiles | Met EX-BIN 2748 | -10/Exiles | Aligned with FarCom system 2749 | -10/Exiles | Given EX-Vault access code 2797 | -10/Exiles | Opened EX-Vault 2815 | -10/Exiles | Found Longsword +1 2847 | -10/Exiles | Warned to stay clear of 0b10 Research branches 2865 | -10/Exiles | Exiles lab attacked by MAIN.C 2909 | -10/Exiles | Learned location of Zion (-7) 2957 | -10/Exiles | Discovered new exit (range 10) 2972 | -10/Exiles | Left Exiles lab with Longsword +1 2972 | -10/Exiles | Entered Mines 2972 | -9/Mines | Accompanied by 3 allies 2987 | -9/Mines | Escorted by a lone wolf Derelict 3007 | -9/Mines | Learned location of Storage (-7) 3080 | -9/Mines | Discovered new exit (range 5) 3095 | -9/Mines | Entered Materials 3095 | -8/Materials | Accompanied by 3 allies 3095 | -8/Materials | Evolved 4 slots: Propulsion x1, Utility x3 4427 | -8/Materials | Discovered new exit (range 5) 5957 | -8/Materials | Discovered new exit (range 15) 7238 | -8/Materials | Core integrity fell below 50% 7499 | -8/Materials | Core integrity fell below 20% 7507 | -8/Materials | Destroyed by H-61 Shepherd with Heavy Assault Cannon Last Messages --------------- 07433_ Acquired 25 matter. 07456_ Acquired 29 matter. 07461_ Acquired 22 matter. 07480_ ALERT: Suspicious intruders detected, dispatching Cutter reinforcements to area. 07483_ R-06 Scavenger destroyed. 07487_ C-17 Slicer knocked back. 07489_ Hrd. Medium Armor Plating severed. 07490_ Penetrated by Slug. 07490_ Lgt. Nuclear Core destroyed. 07490_ C-17 Slicer knocked back. 07490_ C-17 Slicer Lgt. Nuclear Core blasted off. 07490_ C-17 Slicer destroyed. 07492_ Penetrated by Slug. 07492_ Adv. Assault Cannon destroyed. 07494_ Lgt. Treads destroyed. 07494_ Critical hit (Blast). 07498_ C-17 Slicer destroyed. 07498_ Knocked back. Map ----- +----------------------------------------------------+ | # #????????## ## #?# """ # | | # ! *### #????????## ! ######### #?# """ + | | #######+####+##?#?????##=% ## ! # #?# """ # ! | | # ########## | ## # #?# # | | # T %% ! # #### ==## # #?######## | | # # !!## " " +!#????????# | | # " """" # =[ = ## "R" #!#????????# | | """"""""" # %!% ## """ #!########?# | | #* """ """ # ################ # "T" #?# | | ################ ##??###?????????#[# #?# | | ????????# % # #???????????????#[+ """ #### | | ????????# # !##??????????????#!# """ + | | ????????# +[!!###########?????#!#! """ #### | | ????????# % # ! # #?????# # #####+ | | ????????#! # !!# #?????# #####+### | | ????????# # # #?????# ## ##!!! | | ????????######## % # #?????# ##! ##!! | | ?????????????### # """ # ????# ## ##!!! | | ???????????????# # """ # ??# ## "" ## | | ???????????????# + """ # # ## T" # | | ???????????????# # # + ## "" ## | | ??????????????##= ################# ## ###### | | ????????#######; * #### ## / [##### ####+### | | ????????# % %!% %% =%*[% % %* % %% | | ????????# % !!/ =%%=%* % %! | | ????????# H [ [ =*=c @ =%[% | | ???????## ###+##### * %# ############## ! ! | | ???????## ?# * ###### #########?????### ## | | ????????# ??# # [ # # #???????# # | | ????????#???# """ #** # # """ #???????# + | | ????????????# """"" # ** + + """ #???????# # | | ????????????# """"" # ** # # """ #???????# # | | ????????????# """"" #*** # # ! #???????# # | | ????????????# ?""" ###### #?#######???????#%#] | | ????????????#! ??? #????##+##???????????????# ## | | ????????????# ???? #???? ""??????########## | | ????????????#??????##??? g""" ????# ## | | ???????????????????????#] """ #???# #? | | ???????????????????????# #???# ## | | ???????????????????????# "" #???# | | ???????????????????????# "T ##### ######### | | ???????????????????????# "" ## #???????? | | ???????????????????????# [ ?#[[ #???????? | | ???????????????????????#??#######?#[[ #???????? | | ??????????????????????????????????########???????? | | ?????????????????????????????????????????????????? | | | | | | | | | +----------------------------------------------------+ Best States ------------- Heat Dissipation 31 Energy Generation 16 Energy Capacity 290 Matter Stores 377 Matter Capacity 450 Sight Range 16 Terrain Scan Density 10 Armor Coverage 450 Propulsion Shielding 33 Evasion (%) 40 Targeting Accuracy 22 Recoil Reduction 3 Item Schematics ----------------- Hacking Suite | -8/Materials | Scanalyzed Imp. VTOL Module | -8/Materials | Scanalyzed Robot Schematics ------------------ None Fabricated ------------ Nothing Repaired ---------- Nothing Studied --------- None Alien Tech Used ----------------- None Achievements -------------- None Challenges ------------ None Game ------ Seed MyomerFieldthrustRail Manual? 0 Play Time 00:30:10 Cumulative 47.4 hours Start 2026.07.16 @ 19:51:40 End 2026.07.16 @ 20:20:46 Sessions 1 Manual Loads 0 Difficulty Rogue Special Mode None Game No. 114 Rogue 114 Adventurer 0 Explorer 0 Win Type - Total 0 Types 0/0/0/0/0/0/0/0/0/0 Lore% 21 Gallery% 30 Achievement% 27 Wizard Run 0 Options --------- Layout 1 ASCII 0 Keyboard 1 Movement Vi Keybinds 0 Fullscreen 1 Font 24/Smallcaps Map View 50x35 Zoom Use 0% Tactical HUD 1 Map Filters NONE Filters NONE Steam 1 RUN: b0189056-8e68-4179-9c1e-7165e210ce0a